Cogmind - Beta 9.4 @@@ ROGUE MODE // 2020.01.30 @ 18:34:10 Player: Ryker Result: Smashed by cave-in Performance ------------- Evolutions (1) 500 Regions Visited (4) 800 Robots Destroyed (18) 90 Value Destroyed (207) 207 Prototype IDs (22) 440 Alien Tech Used (0) 0 Bonus (2010) 2010 TOTAL SCORE: 4047 Bonus ------- High Alert Combat Kills 17 Follower Combat Kills 1693 Aligned with FarCom 300 Cogmind --------- Core Integrity 0/400 Matter 230/300 Energy 92/100 System Corruption 13% Temperature Cool (3) Movement Walking (120) Location -9/Exiles Parts ------- > --- POWER (1) -------- (None) > --- PROPULSION (4) --- Carbon-fiber Leg Carbon-fiber Leg Carbon-fiber Leg > --- UTILITY (2) ------ Hardened Light Armor Plating > --- WEAPON (2) ------- Gauss Rifle > --- INVENTORY (4) ---- Light Nuclear Core Carbon-fiber Leg Gauss Rifle Remote Datajack Peak State ------------ > --- POWER ------------ Light Nuclear Core > --- PROPULSION ------- Carbon-fiber Leg Carbon-fiber Leg Carbon-fiber Leg Carbon-fiber Leg > --- UTILITY ---------- Hardened Light Armor Plating Hardened Light Armor Plating > --- WEAPON ----------- Gauss Rifle Gauss Rifle > --- INVENTORY -------- Light Nuclear Core Carbon-fiber Leg Hardened Light Armor Plating Ripper [Rating: 28] Favorites ----------- Power Light Nuclear Core Engine Light Ion Engine Power Core Light Nuclear Core Propulsion Carbon-fiber Leg Leg Carbon-fiber Leg Flight Unit Flight Unit Utility Hardened Light Armor Plating Device ECM Suite Storage Small Storage Unit Processor Targeting Computer Protection Hardened Light Armor Plating Weapon Ripper Energy Gun Medium Laser Ballistic Gun Gauss Rifle Launcher Mini Grenade Launcher Special Weapon Plasma Cutter Slashing Weapon Ripper Build | -11 -10 -9 -9 -9 ------- Run | Scr Mat Mat Min Exi Slots Evolved 2 | . . 2 . . Power . | . . . . . Propulsion 2 | . . 2 . . Utility . | . . . . . Weapon . | . . . . . Parts Attached 55 | 7 15 . 2 31 Power 7 | 1 2 . . 4 Engine 4 | 1 2 . . 1 Core 3 | . . . . 3 Reactor . | . . . . . Propulsion 19 | 2 3 . . 14 Treads . | . . . . . Leg 18 | 2 2 . . 14 Wheel . | . . . . . Hover . | . . . . . Flight 1 | . 1 . . . Utility 9 | 1 2 . 1 5 Device 1 | . 1 . . . Storage 1 | 1 . . . . Processor 2 | . . . 1 1 Hackware . | . . . . . Protection 5 | . 1 . . 4 Artifact . | . . . . . Weapon 20 | 3 8 . 1 8 Energy Gun 3 | 1 2 . . . Energy Cannon . | . . . . . Ballistic Gun 10 | 2 2 . . 6 Ballistic Cannon . | . . . . . Launcher 1 | . 1 . . . Special Weapon 3 | . 2 . . 1 Impact Weapon . | . . . . . Slashing Weapon 3 | . 1 . 1 1 Piercing Weapon . | . . . . . Special Melee Weapon . | . . . . . Unidentified Prototypes . | . . . . . Parts Lost 13 | . 6 . . 7 Power 3 | . 1 . . 2 Propulsion 4 | . 2 . . 2 Utility 3 | . 1 . . 2 Weapon 3 | . 2 . . 1 Highest Loss Streak 5 | . 5 . . 4 Average Slot Usage (%) 54 | . 94 33 40 48 Engine 2 | . 13 . . . Core 2 | . . . . 2 Leg 16 | . 27 . . 15 Flight 1 | . . 11 11 1 Device 2 | . 12 11 11 . Processor 1 | . . . 7 1 Protection 9 | . 11 . . 9 Ballistic Gun 7 | . 10 . . 7 Slashing Weapon 6 | . 1 11 11 7 Naked Turns . | . . . . . Heaviest Build 25 | 11 13 3 4 25 Greatest Support 60 | 20 20 4 4 60 Greatest Overweight (x) 2 | 1 2 . . 2 Average Overweight (x) . | . . . . . Largest Inventory Capacity 6 | 6 6 4 4 4 Average Capacity 4 | 5 4 4 4 4 Most Carried 5 | 4 5 4 4 4 Average Carried 3 | 3 3 4 4 3 Final Capacity 6 | 6 4 4 4 4 Final Carried 4 | 4 4 4 4 4 Class Distribution -------------------- 71% | Mutant 28% | Scavenger-Mutant Dominant Class ---------------- Mutant | -10/Materials Mutant | -9/Materials Mutant | -9/Mines Mutant | -9/Exiles Resources | -11 -10 -9 -9 -9 ----------- Run | Scr Mat Mat Min Exi Matter Collected 781 | 270 177 . 30 304 Remotely . | . . . . . Salvage Created 426 | 195 195 . . 36 Parts 30 | 13 15 . . 2 Haulers Intercepted . | . . . . . Recyclers Shooed 1 | . 1 . . . Parts Field Recycled . | . . . . . Retrieved Matter . | . . . . . Parts Self-Destructed . | . . . . . Prevented . | . . . . . Kills | -11 -10 -9 -9 -9 ------- Run | Scr Mat Mat Min Exi Combat Hostiles Destroyed 9 | . 8 . . 1 Melee 2 | . 2 . . . Guns 6 | . 5 . . 1 AOE 1 | . 1 . . . Classes Destroyed 5 | 3 2 . . . Worker 2 | 2 . . . . Tunneler 5 | 5 . . . . Recycler 2 | 1 1 . . . Swarmer 7 | . 7 . . . Grunt 2 | . 1 . . 1 Best Kill Streak 5 | 5 3 . . 1 Combat Bots Only 3 | . 3 . . 1 Max Kills in Single Turn 2 | 1 2 . . 1 Gunslinging 1 | . 1 . . . Exploded 1 | . 1 . . . Melee 1 | . 1 . . . Uniques/NPCs Destroyed . | . . . . . Combat | -11 -10 -9 -9 -9 -------- Run | Scr Mat Mat Min Exi Damage Taken 2664 | . 816 . . 1848 Core 557 | . 154 . . 403 Absorbed by Shields . | . . . . . Core Remaining (%) 69 | 100 38 . . . Volleys Fired 47 | 19 16 . . 12 Largest 2 | 1 2 . . 2 Hottest 56 | 50 50 . . 56 Shots Fired 63 | 19 22 . . 22 Gun 59 | 19 20 . . 20 Cannon . | . . . . . Launcher 2 | . 2 . . . Special 2 | . . . . 2 Kinetic 40 | . 20 . . 20 Thermal 19 | 19 . . . . Explosive 2 | . 2 . . . Electromagnetic . | . . . . . Robot Hit Streak 10 | 6 5 . . 10 Robot Miss Streak 3 | 2 3 . . 1 Penetration Max . | . . . . . Secondary Targets 1 | . 1 . . . Max Gunslinging Chain 1 | . 1 . . . Shots Hit Robots 42 | 14 19 . . 9 Core Hits 21 | 9 11 . . 1 Critical Hits . | . . . . . Critical Kills . | . . . . . Critical Parts Destroyed . | . . . . . Melee Attacks 41 | . 15 . . 26 Impact . | . . . . . Slashing 41 | . 15 . . 26 Piercing . | . . . . . Sneak Attacks . | . . . . . Combat Hostiles . | . . . . . Follow-up Attacks . | . . . . . Damage Inflicted 830 | 189 428 . . 213 Guns 541 | 189 139 . . 213 Cannons . | . . . . . Explosions 125 | . 125 . . . Melee 160 | . 160 . . . Ramming 4 | . 4 . . . Kinetic 352 | . 139 . . 213 Thermal 189 | 189 . . . . Explosive 125 | . 125 . . . Electromagnetic . | . . . . . Impact . | . . . . . Slashing 160 | . 160 . . . Piercing . | . . . . . Highest Corruption 13 | . . . . 13 Average Corruption 2 | . . . . 2 Corruption Purged . | . . . . . Effects 6 | . . . . 6 Message Errors 1 | . . . . 1 Heat Flow Errors 2 | . . . . 2 Energy Discharges 2 | . . . . 2 Data Loss (minor) 1 | . . . . 1 Overload Shots . | . . . . . Overflow Damage 7 | . 7 . . . Projectiles . | . . . . . Explosions . | . . . . . Melee 7 | . 7 . . . Knockbacks . | . . . . . Impact . | . . . . . Kinetic . | . . . . . Secondary . | . . . . . Self-Inflicted Damage 2 | . 2 . . . Shots . | . . . . . Rammed 1 | . 1 . . . Targets Rammed 1 | . 1 . . . Kicked . | . . . . . Crushed . | . . . . . Highest Temperature 159 | 60 6 . . 159 Average Temperature 36 | 25 3 . . 44 Received Heat Transfer 447 | . 201 . . 246 Siege Activations . | . . . . . Robots Corrupted . | . . . . . Combat Hostiles . | . . . . . Parts Fried . | . . . . . Impact Corruptions . | . . . . . Robots Melted . | . . . . . Combat Hostiles . | . . . . . Parts Melted 1 | 1 . . . . Heat Transferred 555 | 555 . . . . Parts Sabotaged . | . . . . . Parts Stolen . | . . . . . Parts Stripped . | . . . . . Power Chain Reactions . | . . . . . Missiles Intercepted . | . . . . . Alert | -11 -10 -9 -9 -9 ------- Run | Scr Mat Mat Min Exi Peak Influence 231 | 40 231 48 18 . Average Influence 81 | 16 121 34 18 . Maximum Alert Level 1 | . 1 . . . Low Security (%) 82 | 100 71 100 100 . Level 1 17 | . 28 . . . Level 2 . | . . . . . Level 3 . | . . . . . Level 4 . | . . . . . Level 5 . | . . . . . High Security . | . . . . . Max Security . | . . . . . Squads Dispatched . | . . . . . Investigation . | . . . . . Extermination . | . . . . . Reinforcement . | . . . . . Assault . | . . . . . Garrison . | . . . . . Intercept . | . . . . . Construction Impeded . | . . . . . Haulers Reinforced . | . . . . . Stealth | -11 -10 -9 -9 -9 --------- Run | Scr Mat Mat Min Exi Distress Signals 2 | . 2 . . . Communications Jammed . | . . . . . Distress Signals . | . . . . . Times Spotted 68 | . 28 . . 40 Peak Tracking Total 12 | . 6 . . 12 Tactical Retreats 11 | . 6 . . 5 Traps | -11 -10 -9 -9 -9 ------- Run | Scr Mat Mat Min Exi Traps Triggered . | . . . . . Indirectly . | . . . . . Trap Hack Attempts . | . . . . . Triggered . | . . . . . Disarmed . | . . . . . Reprogrammed . | . . . . . Reused . | . . . . . Traps Extracted . | . . . . . Installed . | . . . . . Triggered . | . . . . . Exploded 1 | . . . . 1 Machines | -11 -10 -9 -9 -9 ---------- Run | Scr Mat Mat Min Exi Machines Disabled 2 | . 2 . . . Max in Single Turn 1 | . 1 . . . Machines Sabotaged . | . . . . . Garrisons Compromised . | . . . . . Overloaded Fab Kills . | . . . . . Fab Network Shutdowns . | . . . . . Hacking | -11 -10 -9 -9 -9 --------- Run | Scr Mat Mat Min Exi Machines Accessed 7 | . 3 . . 4 Terminals 3 | . 3 . . . Fabricators . | . . . . . Repair Stations . | . . . . . Recycling Units . | . . . . . Scanalyzers . | . . . . . Garrison Access . | . . . . . Total Hacks 33 | . 7 . . 26 Successful 30 | . 4 . . 26 Failed 3 | . 3 . . . Catastrophic . | . . . . . Database Lockouts . | . . . . . Manual 2 | . . . . 2 Terminals 7 | . 7 . . . Fabricators . | . . . . . Repair Stations . | . . . . . Recycling Units . | . . . . . Scanalyzers . | . . . . . Garrison Access . | . . . . . Terminal Hacks 30 | . 4 . . 26 Record 26 | . 1 . . 25 Robot Analysis 1 | . 1 . . . Terminal Index 1 | . 1 . . . Locate Traps 1 | . 1 . . . EX-Prototype ID Bank 1 | . . . . 1 Fabricator Hacks . | . . . . . Repair Station Hacks . | . . . . . Recycling Unit Hacks . | . . . . . Scanalyzer . | . . . . . Garrison Access Hacks . | . . . . . Unauthorized Hacks . | . . . . . Terminals . | . . . . . Fabricators . | . . . . . Repair Stations . | . . . . . Recycling Units . | . . . . . Scanalyzers . | . . . . . Garrison Access . | . . . . . Data Cores Recovered . | . . . . . Used . | . . . . . Hacking Detections 2 | . 2 . . . Full Trace Events . | . . . . . Feedback Events . | . . . . . Feedback Blocked . | . . . . . Robot Schematics Acquired . | . . . . . Robots Built . | . . . . . Matter . | . . . . . Time . | . . . . . Total Robot Build Rating . | . . . . . Part Schematics Acquired . | . . . . . Parts Built . | . . . . . Matter . | . . . . . Time . | . . . . . Total Part Build Rating . | . . . . . Parts Repaired . | . . . . . Time . | . . . . . Parts Recycled . | . . . . . Recycled Matter . | . . . . . Retrieved Matter . | . . . . . Retrieved Components . | . . . . . Parts Scanalyzed . | . . . . . Part Schematics Acquired . | . . . . . Parts Damaged . | . . . . . Bothacking | -11 -10 -9 -9 -9 ------------ Run | Scr Mat Mat Min Exi Used RIF Installer . | . . . . . Robots Hacked . | . . . . . Non-combat . | . . . . . Combat . | . . . . . Robot Hacks Applied . | . . . . . Relay Couplers Released . | . . . . . Robots Rewired . | . . . . . Allies Hacked . | . . . . . Hacks Repelled . | . . . . . Allies | -11 -10 -9 -9 -9 -------- Run | Scr Mat Mat Min Exi Total Allies 3 | . . . 3 . Largest Group 3 | . . . 3 3 Highest-Rated Group 40 | . . . 40 40 Highest-Rated Ally 16 | . . . 16 16 Total Orders 1 | . . . 1 . FOLLOW 1 | . . . 1 . Ally Attacks 137 | . . . . 137 Total Damage 6855 | . . . . 6855 Kills 50 | . . . . 50 Allies Corrupted . | . . . . . Allies Melted . | . . . . . Turrets Deployed 3 | . . . . 3 Intel | -11 -10 -9 -9 -9 ------- Run | Scr Mat Mat Min Exi Robot Analysis Total 1 | . 1 . . . Derelict Logs Recovered 1 | . . . 1 . Drone Launches . | . . . . . Drone Recoveries . | . . . . . Exploration | -11 -10 -9 -9 -9 ------------- Run | Scr Mat Mat Min Exi Turns Passed 3665 | 181 463 15 100 2906 Spaces Moved 1590 | 113 285 38 168 986 Core 113 | 14 3 . . 96 Treads . | . . . . . Legs 692 | 99 264 . . 329 Wheels . | . . . . . Hover . | . . . . . Flight 785 | . 18 38 168 561 Fastest Speed 40 | 50 40 40 40 40 Average Speed 80 | 111 114 40 40 76 Slowest Speed 150 | 120 150 40 40 150 Overloaded Moves . | . . . . . Propulsion Burnouts . | . . . . . Robots Hopped 9 | . . . . 9 Cave-ins Triggered 2 | . . . . 2 Exploration Rate (%) 34 | 5 49 4 35 79 Regions Visited 4 Branch Regions 2 Pre-discovered Areas . | . . . . . Known Exits Taken . | . . . . . Unknown Exits Taken 4 | 1 1 1 1 . Scrap Searched 1 | . . . 1 . Spaces Dug 19 | . . . . 19 Terrain Destroyed 36 | . 17 . . 19 Melee 17 | . . . . 17 Projectile 2 | . . . . 2 AOE 17 | . 17 . . . Actions | -11 -10 -9 -9 -9 --------- Run | Scr Mat Mat Min Exi Total 3826 | 147 371 37 199 3072 Wait 2044 | . 17 . 29 1998 Move 1572 | 112 284 37 167 972 Hop 3 | . . . . 3 Pick Up 27 | 9 9 . . 9 Fast Attach 17 | 1 6 . 2 8 Attach 16 | 5 5 . . 6 Detach 3 | . . . . 3 Swap 22 | 1 4 . . 17 Drop 32 | . 14 . 1 17 Fire 47 | 19 16 . . 12 Melee 41 | . 15 . . 26 Ram . | . . . . . Kick 1 | . 1 . . . Crush . | . . . . . Escape Stasis 1 | . . . . 1 Rewire . | . . . . . Trap . | . . . . . Miscellaneous . | . . . . . Route ------- -11/Scrapyard -10/Materials (discovered 2 exits: [*Mat x2]) -9/Materials -9/Mines -9/Exiles (discovered 1 exit: [*Min]) History --------- Turn | Location | Event 4 | -11/Scrapyard | Discovered new exit (range 16) 182 | -11/Scrapyard | Entered Materials 319 | -10/Materials | Build established: Mutant 354 | -10/Materials | Discovered new exit (range 10) 627 | -10/Materials | Core integrity fell below 50% 644 | -10/Materials | Discovered new exit (range 3) 645 | -10/Materials | Entered another Materials area 645 | -9/Materials | Evolved 2 slots: Propulsion x2 650 | -9/Materials | Discovered new exit (range 15) 660 | -9/Materials | Entered Mines 666 | -9/Mines | Lost 5 parts (1p2n1u1w) 673 | -9/Mines | A weapon hastily lodged in a ceiling crevice suddenly fell to the ground 705 | -9/Mines | Assisted by bots powering up and referring to "LRC-V3" 728 | -9/Mines | Deemed a non-threat by the Exiles lab entrance 729 | -9/Mines | Discovered new exit (range 5) 760 | -9/Mines | Entered Exiles 760 | -9/Exiles | Accompanied by 3 allies 776 | -9/Exiles | Discovered new exit (range 14) 787 | -9/Exiles | Met 8R-AWN 795 | -9/Exiles | Met EX-HEX 817 | -9/Exiles | Met EX-BIN 824 | -9/Exiles | Aligned with FarCom system 824 | -9/Exiles | Given EX-Vault access code 850 | -9/Exiles | Opened EX-Vault 861 | -9/Exiles | Warned to stay clear of 0b10 Research branches 867 | -9/Exiles | Exiles lab attacked by MAIN.C 956 | -9/Exiles | DAS Turret deployed 956 | -9/Exiles | DAS Turret deployed 958 | -9/Exiles | DAS Turret deployed 959 | -9/Exiles | Found 0b10 Alert Chip 2927 | -9/Exiles | Build established: Scavenger-Mutant 3445 | -9/Exiles | Core integrity fell below 50% 3659 | -9/Exiles | Crushed by falling debris 3660 | -9/Exiles | System corruption reached 10% 3666 | -9/Exiles | Crushed by falling debris 3666 | -9/Exiles | Smashed by cave-in Last Messages --------------- 03577_ Slug penetrates DEC's Workstation. 03577_ H-55 Commando suffers critical hit. 03577_ H-55 Commando destroyed. 03580_ Slug penetrates Wall. 03587_ Dropped Gauss Rifle. 03589_ Acquired Gauss Rifle. 03621_ System corrupted: Heat flow error (+127). 03659_ The unstable cave ceiling collapses. 03659_ Crushed by falling debris. 03659_ Imp. Ion Engine destroyed. 03659_ System corrupted by crushing effect (+4). 03659_ Hrd. Light Armor Plating destroyed. 03659_ System corrupted by crushing effect (+1). 03659_ Carbon-fiber Leg destroyed. 03659_ System corrupted by crushing effect (+2). 03659_ Ripper destroyed. 03659_ System corrupted by crushing effect (+3). 03666_ System corrupted: Component data lost. 03666_ The unstable cave ceiling collapses. 03666_ Crushed by falling debris. Map ----- +----------------------------------------------------+ | | | | | | | | | | | | | ?????????????????????????????????????#########???? | | ?????????????????????????????????????# ttt !#???? | | ?????????????????????????????????????# ! #???? | | ?????????????????????????????????????# #???? | | ?????????????????????????????????????# #???? | | ?????????????????????????????????????## ##???? | | ?????????????????????????????????????#X #????? | | ?????????????????????????????????????## #????? | | ??????????????????????????????????????# #????? | | ??????????????????????????????????????# %###### | | ??????????????????????????????????????# ##"""" | | ??????????????????????????????????????# ## " | | ??????????????????????????????????????# % X | | ??????????????????????????????????????# =/% ## " | | ??????????????????????????????#########[%! ;#"""" | | ??????????????????????????????#"""" "##%[%[=###### | | ??????????????????????????????#"""" =##[%!=*#????? | | ??????????????????????????????#""X" *!*!%!%[#????? | | ???????????####################" !*[%%[/!=#????? | | ???????????# # @ ; %##%*%%[#????? | | ???????????#################### """"##=%=%[#?#### | | ??????????????????????????????## ######[!%=%###""" | | ?????????????????????????????? #????#[%%=%%##""" | | ?????????????????????????????""" #????#!*%[%###""" | | ????????????????????????????#""" #???##%%=!|###"" | | ?????????????????????????????""" #???#|![!=*% | | ??????????????????????????????####???#" =%!= | | ?????????????????????????????????????#"!= | | ?????????????????????????????????????#" | | ?????????????????????????????????????#" | | ?????????????????????????????????????# | | ?????????????????????????????????????## | | ??????????????????????????????????????# = | | ??????????????????????????????????????# % "X" | | ??????????????????????????????????????#"! """ | | ??????????????????????????????????????#" """"" | | ????????????????????????" ???????????##" ###### | | ????????????????????????# ?????????##"" #????? | | ??????????????????????### ##??######"" #????? | | ??????????????????#####X# #"###""""""" ##???? | | ?????????????????? """""" " "" ##??? | | ???????????????? "" """ " #### | | ??????????????? | | ??????????????? | +----------------------------------------------------+ Best States ------------- Heat Dissipation 28 Energy Generation 14 Energy Capacity 265 Matter Stores 300 Matter Capacity 300 Sight Range 16 Terrain Scan Density 10 ECM Strength 1 Armor Coverage 300 Propulsion Shielding 33 Evasion (%) 62 Targeting Accuracy 5 Item Schematics ----------------- None Robot Schematics ------------------ None Fabricated ------------ Nothing Alien Tech Used ----------------- None Achievements -------------- Cya! Slippery One Challenges ------------ None Game ------ Seed EnergyForceSplitter Manual? 0 Play Time 00:32:55 Cumulative 12.8 hours Start 2020.01.30 @ 18:03:38 End 2020.01.30 @ 18:34:10 Sessions 1 Manual Loads 0 Difficulty Rogue Special Mode None Game No. 12 Rogue 12 Adventurer 0 Explorer 0 Win Type - Total 0 Types 0/0/0/0/0/0/0 Lore% 17 Gallery% 19 Achievement% 18 Wizard Run 0 Options --------- ASCII 0 Keyboard 0 Movement Mouse Keybinds 0 Fullscreen 1 Font 16/SmallcapsGlow Map View 76x50 Tactical HUD 1 Map Filters NONE Filters NONE Steam 1 RUN: 12c4d233-0cc9-430a-9547-85acf8354715